[Event "VI Sunway Sitges Open 2019"]
[Site "Sitges"]
[Date "2019.12.17"]
[Round "5.26"]
[White "Sardana, Rishi"]
[Black "Lopez Martinez, Josep Manuel"]
[Result "1/2-1/2"]
[ECO "B50"]
[WhiteElo "2428"]
[BlackElo "2561"]
[Annotator "ChessBase"]
[PlyCount "106"]
[EventDate "2019.12.13"]
[EventType "swiss"]
[EventCountry "ESP"]
[SourceTitle "playchess.com"]
[Source "ChessBase"]
[SourceQuality "1"]
[TimeControl "40/5400+30:1800+30"]

1. e4 {[%emt 0:05:30]} c5 {[%emt 0:06:20]} 2. Nf3 {[%emt 0:00:00]} e6 {[%emt 0:01:47]} 3. g3 {[%emt 0:00:00]} Nc6 {[%emt 0:00:42]} 4. Bg2 {[%emt 0:00:00]} Nf6 {[%emt 0:00:22]} 5. Nc3 {[%emt 0:00:00]} d6 {[%emt 0:06:23]} 6. O-O {[%emt 0:00:00]} e5 {[%emt 0:01:28]} 7. d3 {[%emt 0:00:00]} Be7 {[%emt 0:00:58]} 8. Nd2 {[%emt 0:04:36]} Bg4 {[%emt 0:09:11]} 9. f3 {[%emt 0:00:00]} Be6 {[%emt 0:00:09]} 10. f4 {[%emt 0:00:00]} Bg4 {[%emt 0:00:33]} 11. Nf3 {[%emt 0:00:00]} Nd4 {[%emt 0:00:33]} 12. f5 {[%emt 0:10:43]} h6 {[%emt 0:10:37]} 13. h3 {[%emt 0:04:43]} Bxf3 {[%emt 0:01:51]} 14. Bxf3 {[%emt 0:00:07]} Qd7 {[%emt 0:02:13]} 15. Bg2 {[%emt 0:01:24]} O-O-O {[%emt 0:00:44]} 16. g4 {[%emt 0:06:22]} Kb8 {[%emt 0:04:45]} 17. Nd5 {[%emt 0:03:01]} Nxd5 {[%emt 0:00:00]} 18. exd5 {[%emt 0:01:47]} Nb5 {[%emt 0:00:00]} 19. Qe1 {[%emt 0:12:42]} Bg5 {[%emt 0:01:14]} 20. Bxg5 {[%emt 0:01:22]} hxg5 {[%emt 0:02:22]} 21. f6 {[%emt 0:06:53]} Rdg8 {[%emt 0:04:15]} 22. Qe3 {[%emt 0:06:12]} gxf6 {[%emt 0:00:00]} 23. Rxf6 {[%emt 0:00:02]} Nc7 {[%emt 0:03:16]} 24. Raf1 {[%emt 0:03:27]} Rg7 {[%emt 0:00:00]} 25. a3 {[%emt 0:02:56]} Ne8 {[%emt 0:00:00]} 26. R6f5 {[%emt 0:02:59]} f6 {[%emt 0:00:00]} 27. c4 {[%emt 0:02:31]} Qa4 {[%emt 0:00:00]} 28. Qd2 {[%emt 0:05:20]} Qb3 {[%emt 0:09:11]} 29. R5f3 {[%emt 0:00:33]} Qb6 {[%emt 0:00:00]} 30. Re3 {[%emt 0:06:11]} a5 {[%emt 0:00:00]} 31. Be4 {[%emt 0:00:09]} Qa6 {[%emt 0:00:00]} 32. Kg2 {[%emt 0:00:34]} a4 {[%emt 0:00:52]} 33. Ref3 {[%emt 0:00:21]} Rf8 {[%emt 0:01:00]} 34. Bf5 {[%emt 0:00:09]} Rff7 {[%emt 0:02:02]} 35. Be6 {[%emt 0:00:19]} Re7 {[%emt 0:01:18]} 36. Qe1 {[%emt 0:02:04]} b5 {[%emt 0:05:09]} 37. Qe4 {[%emt 0:05:22]} Rb7 {[%emt 0:00:00]} 38. R1f2 {[%emt 0:06:08]} b4 {[%emt 0:02:39]} 39. Bf5 {[%emt 0:00:00]} bxa3 {[%emt 0:01:00]} 40. bxa3 {[%emt 0:00:00]} Rb3 {[%emt 0:00:44]} 41. Bg6 {[%emt 0:00:00]} Nc7 {[%emt 0:00:13]} 42. Ra2 {[%emt 0:02:23]} Qb6 {[%emt 0:01:14]} 43. Rxf6 {[%emt 0:01:57]} Rxa3 {[%emt 0:00:14]} 44. Rxa3 {[%emt 0:00:36]} Qb2+ {[%emt 0:00:09]} 45. Kg3 {[%emt 0:02:36]} Qxa3 {[%emt 0:00:07]} 46. Rxd6 {[%emt 0:00:41]} Qc1 {[%emt 0:17:28]} 47. Bf5 {[%emt 0:01:25]} a3 {[%emt 0:03:02]} 48. Rd8+ {[%emt 0:18:33]} Ka7 {[%emt 0:00:00]} 49. d6 {[%emt 0:00:49]} a2 {[%emt 0:03:01]} 50. dxc7 {[%emt 0:02:13]} Qg1+ {[%emt 0:00:00]} 51. Kf3 {[%emt 0:00:37]} Qf1+ {[%emt 0:00:00]} 52. Kg3 {[%emt 0:00:10]} Qg1+ {[%emt 0:00:39]} 53. Kf3 {[%emt 0:01:09]} Qf1+ {[%emt 0:00:56]} 1/2-1/2

[Event "VI Sunway Sitges Open 2019"]
[Site "Sitges"]
[Date "2019.12.17"]
[Round "5.27"]
[White "Dragnev, Valentin"]
[Black "Batsiashvili, Nino"]
[Result "1/2-1/2"]
[ECO "E15"]
[WhiteElo "2553"]
[BlackElo "2447"]
[Annotator "ChessBase"]
[PlyCount "66"]
[EventDate "2019.12.13"]
[EventType "swiss"]
[EventCountry "ESP"]
[SourceTitle "playchess.com"]
[Source "ChessBase"]
[SourceQuality "1"]
[TimeControl "40/5400+30:1800+30"]

1. d4 {[%emt 0:04:42]} Nf6 {[%emt 0:01:38]} 2. c4 {[%emt 0:00:09]} e6 {[%emt 0:00:04]} 3. Nf3 {[%emt 0:00:06]} b6 {[%emt 0:00:13]} 4. g3 {[%emt 0:00:07]} Bb4+ {[%emt 0:00:11]} 5. Bd2 {[%emt 0:00:06]} Bxd2+ {[%emt 0:00:13]} 6. Qxd2 {[%emt 0:00:26]} Ba6 {[%emt 0:00:08]} 7. b3 {[%emt 0:09:44]} O-O {[%emt 0:01:14]} 8. Bg2 {[%emt 0:02:12]} d5 {[%emt 0:00:15]} 9. cxd5 {[%emt 0:20:20]} exd5 {[%emt 0:00:08]} 10. O-O {[%emt 0:00:06]} c5 {[%emt 0:05:47]} 11. dxc5 {[%emt 0:02:53]} bxc5 {[%emt 0:00:05]} 12. Nc3 {[%emt 0:00:53]} Nc6 {[%emt 0:09:51]} 13. Nh4 {[%emt 0:19:55]} Re8 {[%emt 0:07:14]} 14. Rfe1 {[%emt 0:02:12]} Rc8 {[%emt 0:11:32]} 15. Rac1 {[%emt 0:07:45]} d4 {[%emt 0:13:28]} 16. Na4 {[%emt 0:00:57]} c4 {[%emt 0:00:12]} 17. Nc5 {[%emt 0:11:12]} c3 {[%emt 0:01:45]} 18. Qd1 {[%emt 0:00:05]} Qb6 {[%emt 0:12:44]} 19. Nxa6 {[%emt 0:00:05]} Qxa6 {[%emt 0:00:24]} 20. Bxc6 {[%emt 0:02:02]} Rxc6 {[%emt 0:01:14]} 21. Qxd4 {[%emt 0:00:30]} c2 {[%emt 0:02:31]} 22. e4 {[%emt 0:01:10]} Qa5 {[%emt 0:10:26]} 23. e5 {[%emt 0:06:35]} Nd5 {[%emt 0:03:28]} 24. Nf5 g6 {[%emt 0:02:24]} 25. Nh6+ {[%emt 0:01:27]} Kg7 {[%emt 0:00:25]} 26. Ng4 {[%emt 0:05:29]} Ree6 {[%emt 0:05:56]} 27. Re2 {[%emt 0:01:18]} h5 {[%emt 0:00:48]} 28. Ne3 {[%emt 0:04:49]} Nxe3 {[%emt 0:00:30]} 29. Qxe3 {[%emt 0:01:05]} Qxa2 {[%emt 0:00:18]} 30. Qd3 {[%emt 0:00:51]} Qb2 {[%emt 0:00:45]} 31. Rcxc2 {[%emt 0:00:40]} Rxc2 {[%emt 0:00:03]} 32. Qxc2 {[%emt 0:00:12]} Qxc2 {[%emt 0:00:07]} 33. Rxc2 {[%emt 0:00:02]} Rxe5 {[%emt 0:00:05]} 1/2-1/2

[Event "VI Sunway Sitges Open 2019"]
[Site "Sitges"]
[Date "2019.12.17"]
[Round "5.28"]
[White "Shevchenko, Kirill"]
[Black "Kirk, Ezra"]
[Result "1-0"]
[ECO "C11"]
[WhiteElo "2547"]
[BlackElo "2433"]
[Annotator "ChessBase"]
[PlyCount "91"]
[EventDate "2019.12.13"]
[EventType "swiss"]
[EventCountry "ESP"]
[SourceTitle "playchess.com"]
[Source "ChessBase"]
[SourceQuality "1"]
[TimeControl "40/5400+30:1800+30"]

1. e4 {[%emt 0:00:00]} e6 {[%emt 0:00:37]} 2. d4 {[%emt 0:00:00]} d5 {[%emt 0:00:08]} 3. Nc3 {[%emt 0:00:00]} Nf6 {[%emt 0:00:20]} 4. e5 {[%emt 0:00:00]} Nfd7 {[%emt 0:00:06]} 5. f4 {[%emt 0:00:00]} c5 {[%emt 0:00:08]} 6. Nf3 {[%emt 0:00:00]} Nc6 {[%emt 0:00:34]} 7. Be3 {[%emt 0:00:05]} Be7 {[%emt 0:00:26]} 8. Qd2 {[%emt 0:00:31]} O-O {[%emt 0:00:36]} 9. dxc5 {[%emt 0:00:21]} Bxc5 {[%emt 0:04:22]} 10. O-O-O {[%emt 0:02:42]} Qa5 {[%emt 0:00:29]} 11. a3 {[%emt 0:04:57]} Be7 {[%emt 0:01:01]} 12. Kb1 {[%emt 0:12:12]} a6 {[%emt 0:02:22]} 13. Nd4 {[%emt 0:17:03]} Qc7 {[%emt 0:01:19]} 14. h4 {[%emt 0:07:37]} b5 {[%emt 0:06:17]} 15. Nxc6 {[%emt 0:07:13]} Qxc6 {[%emt 0:00:48]} 16. Ne2 {[%emt 0:00:05]} Nc5 {[%emt 0:05:56]} 17. Nd4 {[%emt 0:05:23]} Qc7 {[%emt 0:01:51]} 18. Qc3 {[%emt 0:03:16]} Qb7 {[%emt 0:05:21]} 19. Nf5 {[%emt 0:02:57]} exf5 {[%emt 0:02:11]} 20. Bxc5 {[%emt 0:00:22]} Bxc5 {[%emt 0:00:53]} 21. Qxc5 {[%emt 0:00:05]} Be6 {[%emt 0:00:09]} 22. Rh3 {[%emt 0:07:01]} d4 {[%emt 0:03:14]} 23. Qxd4 {[%emt 0:08:30]} a5 {[%emt 0:01:55]} 24. Qf2 {[%emt 0:06:55]} b4 {[%emt 0:05:09]} 25. Rd6 {[%emt 0:01:51]} Rfb8 {[%emt 0:15:59]} 26. Qd4 {[%emt 0:01:39]} Qc7 {[%emt 0:00:09]} 27. a4 {[%emt 0:05:43]} b3 {[%emt 0:00:55]} 28. cxb3 {[%emt 0:01:29]} Bxb3 {[%emt 0:06:34]} 29. Rc3 {[%emt 0:00:38]} Qb7 {[%emt 0:00:04]} 30. Bb5 {[%emt 0:00:43]} Be6 {[%emt 0:00:26]} 31. Rcc6 {[%emt 0:01:20]} h6 {[%emt 0:00:18]} 32. g3 {[%emt 0:00:29]} Rc8 {[%emt 0:01:28]} 33. Qb6 {[%emt 0:02:53]} Qe7 {[%emt 0:04:29]} 34. h5 {[%emt 0:01:08]} Rcb8 {[%emt 0:00:56]} 35. Rc7 {[%emt 0:01:05]} Qf8 {[%emt 0:01:20]} 36. Qc5 {[%emt 0:00:24]} Rc8 {[%emt 0:01:28]} 37. Rdc6 {[%emt 0:00:59]} Qxc5 {[%emt 0:00:47]} 38. Rxc5 {[%emt 0:00:01]} Rd8 {[%emt 0:00:07]} 39. Kc2 {[%emt 0:00:57]} Rd4 {[%emt 0:06:53]} 40. Bc4 {[%emt 0:00:00]} Kh7 {[%emt 0:00:00]} 41. Bxe6 {[%emt 0:09:13]} fxe6 {[%emt 0:07:52]} 42. Rc4 {[%emt 0:00:10]} Rd5 {[%emt 0:01:35]} 43. Rc8 {[%emt 0:04:57]} Ra7 {[%emt 0:01:37]} 44. R4c7 {[%emt 0:02:51]} Ra6 {[%emt 0:03:33]} 45. Rc6 {[%emt 0:03:10]} Ra7 {[%emt 0:00:22]} 46. Rd6 {[%emt 0:00:57]} 1-0

[Event "VI Sunway Sitges Open 2019"]
[Site "Sitges"]
[Date "2019.12.17"]
[Round "5.29"]
[White "Harutyunian, Tigran K."]
[Black "Bryakin, Mikhail"]
[Result "1/2-1/2"]
[ECO "D15"]
[WhiteElo "2540"]
[BlackElo "2428"]
[Annotator "ChessBase"]
[PlyCount "80"]
[EventDate "2019.12.13"]
[EventType "swiss"]
[EventCountry "ESP"]
[SourceTitle "playchess.com"]
[Source "ChessBase"]
[SourceQuality "1"]
[TimeControl "40/5400+30:1800+30"]

1. c4 {[%emt 0:00:00]} c6 {[%emt 0:00:00]} 2. Nf3 {[%emt 0:00:18]} d5 {[%emt 0:00:00]} 3. d4 {[%emt 0:00:19]} Nf6 {[%emt 0:00:00]} 4. Nc3 {[%emt 0:00:13]} a6 {[%emt 0:00:06]} 5. c5 {[%emt 0:00:29]} Nbd7 {[%emt 0:00:12]} 6. Bf4 {[%emt 0:01:51]} Nh5 {[%emt 0:00:08]} 7. Bd2 {[%emt 0:00:15]} g6 {[%emt 0:00:45]} 8. e4 {[%emt 0:01:35]} dxe4 {[%emt 0:01:20]} 9. Nxe4 {[%emt 0:01:05]} Nhf6 {[%emt 0:10:24]} 10. Nxf6+ {[%emt 0:06:34]} Nxf6 {[%emt 0:00:29]} 11. Bc4 {[%emt 0:00:07]} Bg7 {[%emt 0:01:34]} 12. O-O {[%emt 0:00:38]} O-O {[%emt 0:00:34]} 13. Qb3 {[%emt 0:02:21]} Nd5 {[%emt 0:02:10]} 14. Rfe1 {[%emt 0:00:48]} e6 {[%emt 0:15:32]} 15. Bg5 {[%emt 0:05:30]} f6 {[%emt 0:12:07]} 16. Bh4 {[%emt 0:01:11]} Re8 {[%emt 0:01:26]} 17. Bg3 {[%emt 0:01:07]} a5 {[%emt 0:03:22]} 18. a4 {[%emt 0:03:17]} Bh6 {[%emt 0:02:20]} 19. Re2 {[%emt 0:01:41]} Kf7 {[%emt 0:02:28]} 20. Rae1 {[%emt 0:02:35]} Ra7 {[%emt 0:03:19]} 21. Nd2 {[%emt 0:03:41]} Bxd2 {[%emt 0:01:14]} 22. Rxd2 {[%emt 0:00:07]} b6 {[%emt 0:05:08]} 23. Bd6 {[%emt 0:05:00]} bxc5 {[%emt 0:02:41]} 24. dxc5 {[%emt 0:00:12]} Kg7 {[%emt 0:02:16]} 25. h4 {[%emt 0:05:37]} Rb7 {[%emt 0:02:22]} 26. Qf3 {[%emt 0:03:33]} Rb4 {[%emt 0:01:30]} 27. b3 {[%emt 0:00:22]} Bd7 {[%emt 0:01:47]} 28. h5 {[%emt 0:06:24]} Qc8 {[%emt 0:08:29]} 29. Rd4 {[%emt 0:09:18]} e5 {[%emt 0:04:54]} 30. Rh4 {[%emt 0:02:54]} Bf5 {[%emt 0:04:52]} 31. hxg6 {[%emt 0:16:50]} Bxg6 {[%emt 0:00:05]} 32. Qg3 {[%emt 0:02:14]} Qf5 {[%emt 0:02:14]} 33. Rhe4 {[%emt 0:00:59]} Nf4 {[%emt 0:01:58]} 34. Qh4 {[%emt 0:00:52]} h5 {[%emt 0:01:26]} 35. R4e3 {[%emt 0:02:05]} Bf7 {[%emt 0:03:01]} 36. Qg3+ {[%emt 0:01:30]} Qg4 {[%emt 0:01:51]} 37. Bf1 {[%emt 0:06:47]} Nd5 {[%emt 0:02:31]} 38. Be2 {[%emt 0:00:26]} Qxg3 {[%emt 0:00:37]} 39. Rxg3+ {[%emt 0:00:06]} Kh6 {[%emt 0:00:22]} 40. Bc4 {[%emt 0:00:00]} Be6 {[%emt 0:00:00]} 1/2-1/2

[Event "VI Sunway Sitges Open 2019"]
[Site "Sitges"]
[Date "2019.12.17"]
[Round "5.30"]
[White "Low, Zhen Yu Cyrus"]
[Black "Stefansson, Hannes"]
[Result "1/2-1/2"]
[ECO "B45"]
[WhiteElo "2420"]
[BlackElo "2538"]
[Annotator "ChessBase"]
[PlyCount "51"]
[EventDate "2019.12.13"]
[EventType "swiss"]
[EventCountry "ESP"]
[SourceTitle "playchess.com"]
[Source "ChessBase"]
[SourceQuality "1"]
[TimeControl "40/5400+30:1800+30"]

1. e4 {[%emt 0:00:02]} c5 {[%emt 0:00:21]} 2. Nf3 {[%emt 0:00:08]} Nc6 {[%emt 0:00:24]} 3. d4 {[%emt 0:00:07]} cxd4 {[%emt 0:00:14]} 4. Nxd4 {[%emt 0:00:07]} e6 {[%emt 0:00:11]} 5. g3 {[%emt 0:00:09]} d5 {[%emt 0:11:03]} 6. Nc3 {[%emt 0:00:06]} Nf6 {[%emt 0:05:52]} 7. Bg2 {[%emt 0:00:57]} dxe4 {[%emt 0:03:28]} 8. Nxc6 {[%emt 0:00:08]} Qxd1+ {[%emt 0:00:17]} 9. Kxd1 {[%emt 0:00:07]} bxc6 {[%emt 0:00:09]} 10. Nxe4 {[%emt 0:00:15]} Nxe4 {[%emt 0:01:16]} 11. Bxe4 {[%emt 0:00:09]} Bb7 {[%emt 0:00:29]} 12. Be3 {[%emt 0:06:09]} O-O-O+ {[%emt 0:00:56]} 13. Kc1 {[%emt 0:00:36]} Be7 {[%emt 0:02:30]} 14. c3 {[%emt 0:02:47]} c5 {[%emt 0:00:59]} 15. Bxb7+ {[%emt 0:01:56]} Kxb7 {[%emt 0:00:05]} 16. Kc2 {[%emt 0:06:49]} Kc6 {[%emt 0:00:12]} 17. Rhd1 {[%emt 0:05:29]} a5 {[%emt 0:01:26]} 18. a4 {[%emt 0:05:44]} Rd5 {[%emt 0:01:04]} 19. c4 {[%emt 0:11:59]} Rxd1 {[%emt 0:02:15]} 20. Rxd1 {[%emt 0:00:47]} Bf6 {[%emt 0:00:53]} 21. Bd2 {[%emt 0:04:39]} Rb8 {[%emt 0:03:38]} 22. Rb1 {[%emt 0:00:59]} Kb6 {[%emt 0:02:07]} 23. Be3 {[%emt 0:07:55]} Kc6 {[%emt 0:00:44]} 24. Bd2 {[%emt 0:00:06]} Kb6 {[%emt 0:00:17]} 25. Be3 {[%emt 0:00:08]} Kc6 {[%emt 0:00:06]} 26. Bd2 {[%emt 0:00:06]} 1/2-1/2

[Event "VI Sunway Sitges Open 2019"]
[Site "Sitges"]
[Date "2019.12.17"]
[Round "5.32"]
[White "Sindarov, Javokhir"]
[Black "Alexiadis, Hristos"]
[Result "1/2-1/2"]
[ECO "B91"]
[WhiteElo "2526"]
[BlackElo "2346"]
[Annotator "ChessBase"]
[PlyCount "76"]
[EventDate "2019.12.13"]
[EventType "swiss"]
[EventCountry "ESP"]
[SourceTitle "playchess.com"]
[Source "ChessBase"]
[SourceQuality "1"]
[TimeControl "40/5400+30:1800+30"]

1. e4 {[%emt 0:06:44]} c5 {[%emt 0:00:07]} 2. Nc3 {[%emt 0:00:43]} d6 {[%emt 0:01:20]} 3. Nge2 {[%emt 0:01:48]} a6 {[%emt 0:01:04]} 4. g3 {[%emt 0:00:12]} g6 {[%emt 0:00:21]} 5. Bg2 {[%emt 0:01:05]} Bg7 {[%emt 0:00:09]} 6. d4 {[%emt 0:00:26]} cxd4 {[%emt 0:00:34]} 7. Nxd4 {[%emt 0:00:09]} Nf6 {[%emt 0:00:53]} 8. O-O {[%emt 0:00:11]} O-O {[%emt 0:00:10]} 9. Re1 {[%emt 0:00:31]} Bd7 {[%emt 0:05:30]} 10. Nd5 {[%emt 0:07:01]} Nc6 {[%emt 0:00:56]} 11. Nb3 {[%emt 0:00:14]} Ne5 {[%emt 0:13:08]} 12. Nd4 {[%emt 0:16:13]} Nc6 {[%emt 0:05:07]} 13. Be3 {[%emt 0:17:14]} Nxd4 {[%emt 0:03:41]} 14. Bxd4 {[%emt 0:00:22]} Bc6 {[%emt 0:00:24]} 15. Nxf6+ {[%emt 0:06:17]} Bxf6 {[%emt 0:00:09]} 16. Bxf6 {[%emt 0:02:24]} exf6 {[%emt 0:00:05]} 17. c4 {[%emt 0:00:18]} a5 {[%emt 0:05:34]} 18. Qd4 {[%emt 0:01:49]} Qe7 {[%emt 0:00:08]} 19. Rad1 {[%emt 0:00:08]} Rad8 {[%emt 0:01:45]} 20. Qc3 {[%emt 0:07:03]} a4 {[%emt 0:14:56]} 21. b4 {[%emt 0:04:22]} axb3 {[%emt 0:00:08]} 22. axb3 {[%emt 0:00:02]} Rfe8 {[%emt 0:00:23]} 23. b4 {[%emt 0:00:04]} b5 {[%emt 0:00:59]} 24. Bf1 {[%emt 0:02:24]} bxc4 {[%emt 0:17:05]} 25. Bxc4 {[%emt 0:00:04]} Bxe4 {[%emt 0:02:27]} 26. Bb5 {[%emt 0:11:21]} Rf8 {[%emt 0:05:06]} 27. Qd4 {[%emt 0:00:13]} f5 {[%emt 0:02:56]} 28. Bc6 {[%emt 0:00:56]} Qe5 {[%emt 0:01:34]} 29. Bxe4 {[%emt 0:00:43]} Qxd4 {[%emt 0:00:48]} 30. Rxd4 {[%emt 0:00:06]} fxe4 {[%emt 0:00:03]} 31. Rexe4 {[%emt 0:00:07]} Rd7 {[%emt 0:00:06]} 32. Kg2 {[%emt 0:03:36]} Kg7 {[%emt 0:00:50]} 33. Kf3 {[%emt 0:00:26]} d5 {[%emt 0:00:35]} 34. Re2 {[%emt 0:01:36]} Rb8 {[%emt 0:00:07]} 35. Rc2 {[%emt 0:02:29]} Rdb7 {[%emt 0:00:21]} 36. Rc5 {[%emt 0:03:19]} Rxb4 {[%emt 0:00:08]} 37. Rxb4 {[%emt 0:00:05]} Rxb4 {[%emt 0:00:04]} 38. Rxd5 {[%emt 0:00:04]} h5 {[%emt 0:00:10] Ke4} 1/2-1/2

[Event "VI Sunway Sitges Open 2019"]
[Site "Sitges"]
[Date "2019.12.17"]
[Round "5.33"]
[White "Harsha Bharathakoti"]
[Black "Ajay Krishna, S."]
[Result "1-0"]
[ECO "B53"]
[WhiteElo "2523"]
[BlackElo "2302"]
[Annotator "ChessBase"]
[PlyCount "129"]
[EventDate "2019.12.13"]
[EventType "swiss"]
[EventCountry "ESP"]
[SourceTitle "playchess.com"]
[Source "ChessBase"]
[SourceQuality "1"]
[TimeControl "40/5400+30:1800+30"]

1. e4 {[%emt 0:00:50]} c5 {[%emt 0:00:14]} 2. Nf3 {[%emt 0:01:00]} d6 {[%emt 0:00:20]} 3. d4 {[%emt 0:01:08]} cxd4 {[%emt 0:00:11]} 4. Qxd4 {[%emt 0:00:20]} Nc6 {[%emt 0:02:08]} 5. Bb5 {[%emt 0:07:48]} Bd7 {[%emt 0:00:42]} 6. Bxc6 {[%emt 0:01:00]} Bxc6 {[%emt 0:00:10]} 7. Nc3 {[%emt 0:00:29]} Nf6 {[%emt 0:00:47]} 8. Bg5 {[%emt 0:00:50]} e6 {[%emt 0:01:26]} 9. O-O-O {[%emt 0:00:57]} Be7 {[%emt 0:00:32]} 10. Rhe1 {[%emt 0:01:14]} O-O {[%emt 0:00:25]} 11. Qd3 {[%emt 0:00:19]} Qa5 {[%emt 0:01:45]} 12. Bh4 {[%emt 0:00:06]} Qh5 {[%emt 0:05:08]} 13. h3 {[%emt 0:01:17]} Rfe8 {[%emt 0:04:14]} 14. Qe3 {[%emt 0:24:41]} Qc5 {[%emt 0:10:04]} 15. Qxc5 {[%emt 0:02:36]} dxc5 {[%emt 0:00:13]} 16. Ne5 {[%emt 0:00:50]} Rac8 {[%emt 0:16:39]} 17. Nxc6 {[%emt 0:02:11]} Rxc6 {[%emt 0:00:13]} 18. e5 {[%emt 0:01:58]} Nd5 {[%emt 0:00:10]} 19. Bxe7 {[%emt 0:00:08]} Rxe7 {[%emt 0:00:16]} 20. Nxd5 {[%emt 0:00:17]} exd5 {[%emt 0:00:06]} 21. Rxd5 {[%emt 0:00:05]} f6 {[%emt 0:00:18]} 22. Kd2 {[%emt 0:02:52]} Kf7 {[%emt 0:02:57]} 23. Kc3 {[%emt 0:09:02]} b6 {[%emt 0:01:58]} 24. Kc4 {[%emt 0:07:02]} fxe5 {[%emt 0:08:23]} 25. Rexe5 {[%emt 0:02:30]} Rf6 {[%emt 0:00:16]} 26. Rxe7+ {[%emt 0:01:09]} Kxe7 {[%emt 0:00:07]} 27. Rd2 {[%emt 0:00:11]} Rf4+ {[%emt 0:00:43]} 28. Kd5 {[%emt 0:07:07]} Rf6 {[%emt 0:00:24]} 29. Re2+ {[%emt 0:00:03]} Kd7 {[%emt 0:00:47]} 30. c3 {[%emt 0:00:08]} Rd6+ {[%emt 0:03:29]} 31. Kc4 {[%emt 0:06:47]} Kc6 {[%emt 0:01:11]} 32. a4 {[%emt 0:01:06]} a6 {[%emt 0:06:11]} 33. f4 {[%emt 0:00:45]} Rf6 {[%emt 0:05:43]} 34. Re4 {[%emt 0:10:02]} Rd6 {[%emt 0:05:56]} 35. Re2 {[%emt 0:02:56]} Rf6 {[%emt 0:00:09]} 36. g3 {[%emt 0:01:53]} h5 {[%emt 0:00:53]} 37. h4 {[%emt 0:00:56]} b5+ {[%emt 0:08:57]} 38. axb5+ {[%emt 0:00:05]} axb5+ {[%emt 0:00:04]} 39. Kd3 {[%emt 0:04:18]} Rd6+ {[%emt 0:04:59]} 40. Ke4 {[%emt 0:00:00]} Re6+ {[%emt 0:00:00]} 41. Kf3 {[%emt 0:00:25]} Rd6 {[%emt 0:01:00]} 42. f5 {[%emt 0:01:24]} Rd1 {[%emt 0:02:58]} 43. Kf4 {[%emt 0:01:46]} Rg1 {[%emt 0:04:38]} 44. Re3 {[%emt 0:18:32]} Rg2 {[%emt 0:07:41]} 45. Kg5 {[%emt 0:02:28]} Rxb2 {[%emt 0:03:12]} 46. Kxh5 {[%emt 0:00:05]} Rb3 {[%emt 0:01:07]} 47. g4 {[%emt 0:01:17]} Kd7 {[%emt 0:04:42]} 48. Kg6 {[%emt 0:01:24]} b4 {[%emt 0:00:18]} 49. Kxg7 {[%emt 0:00:07]} Rxc3 {[%emt 0:00:06]} 50. Re1 {[%emt 0:00:38]} b3 {[%emt 0:00:39]} 51. f6 {[%emt 0:00:14]} c4 {[%emt 0:01:05]} 52. f7 {[%emt 0:02:02]} Rf3 {[%emt 0:00:06]} 53. h5 {[%emt 0:00:02]} c3 {[%emt 0:02:48]} 54. h6 {[%emt 0:00:07]} c2 {[%emt 0:00:49]} 55. h7 {[%emt 0:00:06]} b2 {[%emt 0:01:11]} 56. h8=Q {[%emt 0:00:06]} c1=Q {[%emt 0:01:24]} 57. Qe8+ {[%emt 0:00:12]} Kc7 {[%emt 0:00:03]} 58. Qe7+ {[%emt 0:01:38]} Kc6 {[%emt 0:01:59]} 59. Re6+ {[%emt 0:00:18]} Kd5 {[%emt 0:02:46]} 60. Qd7+ {[%emt 0:02:56]} Kc4 {[%emt 0:00:07]} 61. Rc6+ {[%emt 0:00:06]} Kb3 {[%emt 0:00:23]} 62. Qd5+ {[%emt 0:00:03]} Ka4 {[%emt 0:00:21]} 63. Ra6+ {[%emt 0:00:10]} Kb4 {[%emt 0:00:08]} 64. Rb6+ {[%emt 0:00:08]} Ka4 {[%emt 0:00:22]} 65. Qa8# {[%emt 0:00:05]} 1-0

[Event "VI Sunway Sitges Open 2019"]
[Site "Sitges"]
[Date "2019.12.17"]
[Round "5.34"]
[White "Dhulipalla Bala Chandra Prasad"]
[Black "Narciso Dublan, Marc"]
[Result "1/2-1/2"]
[ECO "E00"]
[WhiteElo "2414"]
[BlackElo "2516"]
[Annotator "ChessBase"]
[PlyCount "78"]
[EventDate "2019.12.13"]
[EventType "swiss"]
[EventCountry "ESP"]
[SourceTitle "playchess.com"]
[Source "ChessBase"]
[SourceQuality "1"]
[TimeControl "40/5400+30:1800+30"]

1. d4 {[%emt 0:00:00]} Nf6 {[%emt 0:00:00]} 2. c4 {[%emt 0:00:00]} e6 {[%emt 0:00:18]} 3. g3 {[%emt 0:00:36]} Bb4+ {[%emt 0:00:30]} 4. Bd2 {[%emt 0:00:30]} c5 {[%emt 0:00:30]} 5. Bxb4 {[%emt 0:00:30]} cxb4 {[%emt 0:00:30]} 6. Bg2 {[%emt 0:00:30]} O-O {[%emt 0:00:30]} 7. e4 {[%emt 0:00:30]} d6 {[%emt 0:00:30]} 8. Ne2 {[%emt 0:00:30]} e5 {[%emt 0:00:30]} 9. O-O {[%emt 0:00:30]} a5 {[%emt 0:00:30]} 10. a3 {[%emt 0:00:30]} Ra6 {[%emt 0:00:30]} 11. axb4 {[%emt 0:00:30]} axb4 {[%emt 0:00:30]} 12. Nd2 {[%emt 0:00:30]} Bg4 {[%emt 0:00:30]} 13. f3 {[%emt 0:00:30]} Bd7 {[%emt 0:00:30]} 14. Kh1 {[%emt 0:00:30]} Nc6 {[%emt 0:00:30]} 15. Nb3 {[%emt 0:00:30]} Rxa1 {[%emt 0:00:30]} 16. Qxa1 {[%emt 0:00:30]} Qb6 {[%emt 0:00:30]} 17. d5 {[%emt 0:00:30]} Nb8 {[%emt 0:00:30]} 18. Qa5 {[%emt 0:00:30]} Qe3 {[%emt 0:00:30]} 19. Nec1 {[%emt 0:00:30]} Na6 {[%emt 0:00:30]} 20. c5 {[%emt 0:00:30]} dxc5 {[%emt 0:00:30]} 21. Qb6 {[%emt 0:00:30]} h5 {[%emt 0:00:30]} 22. Na5 {[%emt 0:00:30]} h4 {[%emt 0:00:30]} 23. gxh4 {[%emt 0:00:30]} Nh5 {[%emt 0:00:30]} 24. Qxb7 {[%emt 0:00:30]} Nb8 {[%emt 0:00:30]} 25. Nc4 {[%emt 0:00:30]} Qd4 {[%emt 0:00:30]} 26. Nb6 {[%emt 0:00:30]} Bb5 {[%emt 0:00:30]} 27. Rg1 {[%emt 0:00:30]} Nf4 {[%emt 0:00:30]} 28. Nc8 {[%emt 0:00:30]} Ba6 {[%emt 0:00:30]} 29. Ne7+ {[%emt 0:00:30]} Kh8 {[%emt 0:00:30]} 30. Qc7 {[%emt 0:00:30]} Nxg2 {[%emt 0:00:30]} 31. Nf5 {[%emt 0:00:30]} Qxb2 {[%emt 0:00:30]} 32. Qe7 {[%emt 0:00:30]} Rg8 {[%emt 0:00:30]} 33. Qg5 {[%emt 0:00:30]} Nf4 {[%emt 0:00:30]} 34. Nxg7 {[%emt 0:00:30]} Kh7 {[%emt 0:00:30]} 35. Qf5+ {[%emt 0:00:30]} Kh8 {[%emt 0:00:30]} 36. Qf6 {[%emt 0:00:30]} Kh7 {[%emt 0:00:30]} 37. Qxf7 {[%emt 0:00:30]} Kh8 {[%emt 0:00:30]} 38. Qf6 {[%emt 0:00:30]} Kh7 {[%emt 0:00:30]} 39. Qf5+ {[%emt 0:00:30]} Kh8 {[%emt 0:00:30]} 1/2-1/2